bitfinex-derivatives/quotes_BTCF0:USTF0_20210111
["timestamp","ask_amount","ask_price","bid_price","bid_amount"]
[1610382791619,0.08182,30874.0,30840.0,0.34077474]
[1610382791819,0.08182,30874.0,30840.0,0.45447474]
[1610382792421,0.13632608,30841.0,30840.0,0.45447474]
[1610382792620,0.08182,30874.0,30840.0,0.45447474]
[1610382792822,3.9704,30869.0,30840.0,0.45447474]
[1610382793422,5.4704,30869.0,30840.0,0.45447474]
[1610382793822,3.9704,30869.0,30840.0,0.45447474]
[1610382794023,1.5,30868.0,30840.0,0.45447474]
[1610382794523,0.13632608,30841.0,30840.0,0.45447474]
[1610382794722,1.5,30868.0,30840.0,0.45447474]
[1610382795123,1.5,30868.0,30840.0,0.44767474]
[1610382796122,1.5,30868.0,30840.0,0.36647474]
[1610382796323,1.5,30868.0,30841.0,0.0982]
[1610382796523,0.13632608,30842.0,30840.0,0.30557474]
[1610382796722,1.5,30868.0,30840.0,0.30557474]
[1610382796723,0.0974,30862.0,30840.0,0.30557474]
[1610382796922,0.0974,30862.0,30840.0,0.26517474]
[1610382797124,0.0974,30862.0,30840.0,0.22967474]
[1610382797323,4.4721,30859.0,30840.0,0.22967474]
[1610382797524,1.5,30858.0,30840.0,0.07057474]
[1610382797724,1.5,30858.0,30841.0,0.0267]
[1610382797924,1.10794,30858.0,30799.0,4.0029]
[1610382798125,4.4721,30859.0,30799.0,4.0029]
[1610382798327,4.4721,30859.0,30799.0,4.09334]
[1610382798926,0.13632608,30830.0,30829.0,0.13632608]
[1610382799126,4.4721,30859.0,30829.0,0.13632608]
[1610382799327,4.4721,30859.0,30829.0,0.21779608]
[1610382800726,3.43144156,30902.0,30829.0,0.08147]
[1610382800929,3.42915418,30910.0,30829.0,0.08147]
[1610382801330,0.13632608,30876.0,30875.0,0.13632608]
[1610382801528,0.13632608,30876.0,30829.0,0.08147]
[1610382801927,5.4112,30909.0,30829.0,0.08147]
[1610382802927,5.4112,30909.0,30840.0,0.27635699]
[1610382803129,5.4112,30909.0,30840.0,0.36956699]
[1610382803328,0.13632608,30841.0,30840.0,0.36956699]
[1610382803531,5.5091,30909.0,30840.0,0.36956699]
[1610382803729,3.42486642,30901.0,30840.0,0.36956699]
[1610382803928,1.5,30900.0,30840.0,0.36956699]
[1610382804429,1.5968,30900.0,30840.0,0.36956699]
[1610382805030,1.5,30900.0,30840.0,0.36956699]
[1610382805231,1.5,30899.0,30844.0,0.13632608]
[1610382805432,1.5,30899.0,30840.0,0.36956699]
[1610382805632,5.2097,30886.0,30840.0,0.36956699]
[1610382806834,0.09626,30890.0,30840.0,0.36956699]
[1610382808037,0.13632608,30856.0,30851.0,0.13632608]
[1610382808435,0.13632608,30856.0,30840.0,0.36956699]
[1610382808639,0.09626,30890.0,30840.0,0.36956699]
[1610382810337,0.09626,30890.0,30840.0,0.36346699]
[1610382810737,0.09626,30890.0,30840.0,0.32946699]
[1610382811140,3.41039748,30885.0,30840.0,0.32776699]
[1610382811339,0.13632608,30841.0,30840.0,0.32776699]
[1610382811939,0.13632608,30841.0,30829.0,0.08147]
[1610382812138,0.13632608,30841.0,30826.0,0.13632608]
[1610382812538,1.0,30873.0,30826.0,0.13632608]
[1610382812739,1.0,30873.0,30826.0,0.23121608]
[1610382813339,1.0,30873.0,30826.0,0.09489]
[1610382813540,3.40841213,30887.0,30826.0,0.09489]
[1610382813742,3.50441213,30887.0,30826.0,0.09489]
[1610382813946,0.13632608,30827.0,30826.0,0.09489]
[1610382814143,0.0965,30873.0,30826.0,0.09489]
[1610382814342,1.5,30886.0,30826.0,0.09489]
[1610382815140,1.5,30886.0,30817.0,3.97199]
[1610382815341,3.40580687,30868.0,30757.0,0.0982]
[1610382815545,5.1142,30849.0,30768.0,4.5333]
[1610382815743,1.5,30849.0,30704.0,0.0966]
[1610382815940,1.5,30849.0,30767.0,0.13632608]
[1610382815941,0.13632608,30774.0,30767.0,0.13632608]
[1610382816141,1.5,30849.0,30704.0,0.0966]
[1610382816340,1.5,30849.0,30704.0,0.17304]
[1610382816740,1.5,30848.0,30704.0,0.07644]
[1610382816940,0.0836069,30837.0,30704.0,0.07644]
[1610382817147,0.0971,30836.0,30704.0,0.07644]
[1610382817342,3.40499864,30834.0,30704.0,0.07644]
[1610382817545,1.0,30814.0,30704.0,0.07644]
[1610382817742,1.5,30813.0,30704.0,0.07644]
[1610382818144,1.0,30814.0,30704.0,0.07644]
[1610382818344,1.0,30814.0,30719.0,0.13632608]
[1610382818543,1.0,30814.0,30719.0,0.23758608]
[1610382818742,1.0,30814.0,30719.0,0.10126]
[1610382818743,0.096,30813.0,30719.0,0.10126]
[1610382819945,3.49208355,30821.0,30719.0,0.10126]
[1610382820145,3.39498355,30821.0,30719.0,0.10126]
[1610382820345,4.0266,30809.0,30793.0,0.13632608]
[1610382820547,3.39377153,30826.0,30793.0,0.13632608]
[1610382820748,4.39223217,30837.0,30793.0,0.10743]
[1610382820947,1.0,30837.0,30793.0,0.10743]
[1610382821548,3.39087346,30853.0,30793.0,0.10743]
[1610382821746,3.39081472,30856.0,30793.0,0.10743]
[1610382821945,3.38978965,30859.0,30793.0,0.10743]
[1610382822746,0.2976,30863.0,30812.0,0.13632608]
[1610382822747,0.13632608,30819.0,30812.0,0.13632608]
[1610382822946,3.39114096,30862.0,30812.0,0.13632608]
[1610382823145,0.2976,30863.0,30812.0,0.13632608]
[1610382823146,0.2976,30863.0,30812.0,0.21165608]
[1610382823345,3.39067657,30866.0,30812.0,0.07533]
[1610382823547,3.39433633,30869.0,30812.0,0.07533]
[1610382823948,3.39433633,30869.0,30812.0,3e-05]
[1610382824153,1.5,30868.0,30812.0,0.10891]
[1610382824351,1.60366,30868.0,30793.0,6e-05]
[1610382824567,3.39932621,30855.0,30793.0,6e-05]
[1610382824746,1.5,30854.0,30793.0,6e-05]
[1610382824948,0.0982,30853.0,30793.0,6e-05]
[1610382825146,0.13632608,30794.0,30793.0,6e-05]
[1610382825550,0.13632608,30794.0,30682.0,0.0224053]
[1610382826368,0.09038,30799.0,30682.0,0.0224053]
[1610382826559,0.08215,30806.0,30696.0,0.16358446]
[1610382827349,0.08215,30806.0,30721.0,0.13632608]
[1610382827553,4.0413,30774.0,30721.0,0.10104]
[1610382827759,4.11368,30774.0,30721.0,0.10104]
[1610382829554,0.13632608,30722.0,30721.0,0.10104]
[1610382829753,4.11368,30774.0,30721.0,0.10104]
[1610382831154,0.07238,30774.0,30721.0,0.10104]
[1610382831554,0.13632608,30722.0,30721.0,0.10104]
[1610382831754,0.07238,30774.0,30721.0,0.10104]
[1610382831957,1.0,30738.0,30721.0,0.10104]
[1610382832756,1.0,30738.0,30696.0,0.16358446]
[1610382833758,0.13632608,30697.0,30696.0,0.16358446]
[1610382833957,1.0,30759.0,30696.0,0.16358446]
[1610382834356,1.5,30758.0,30696.0,0.16358446]
[1610382834559,1.57519,30758.0,30696.0,0.16358446]
[1610382834757,0.07519,30758.0,30696.0,0.16358446]
[1610382834957,0.17349,30758.0,30696.0,0.16358446]
[1610382835357,1.5,30757.0,30696.0,0.14518446]
[1610382835658,3.40536588,30750.0,30696.0,0.14518446]
[1610382836061,3.49317588,30750.0,30650.0,0.05]
[1610382836259,0.13632608,30681.0,30669.0,0.13632608]
[1610382836460,0.10101,30741.0,30650.0,0.05]
[1610382836660,1.5,30740.0,30650.0,0.12643]
[1610382836859,1.5964,30740.0,30650.0,0.12643]
[1610382837661,3.39628557,30737.0,30650.0,0.12643]
[1610382837861,1.0,30726.0,30650.0,0.12643]
[1610382838062,1.08125,30726.0,30650.0,0.12643]
[1610382838263,0.13632608,30657.0,30652.0,0.13632608]
[1610382838463,1.08125,30726.0,30650.0,0.12643]
[1610382838464,4.7003,30719.0,30650.0,0.12643]
[1610382838966,4.7003,30719.0,30648.0,3.78023]
[1610382840765,4.7003,30719.0,30683.0,0.13632608]
[1610382840965,4.7003,30719.0,30683.0,0.11276]
[1610382842569,4.7003,30719.0,30648.0,3.78023]
[1610382843370,4.7003,30719.0,30659.0,0.13632608]
[1610382843570,4.7003,30719.0,30659.0,0.11065]
[1610382844071,0.11222,30720.0,30659.0,0.11065]
[1610382844269,1.61222,30720.0,30659.0,0.01175]
[1610382845270,0.13632608,30660.0,30659.0,0.01175]
[1610382845470,1.61222,30720.0,30659.0,0.01175]
[1610382845869,1.0,30680.0,30659.0,0.01175]
[1610382846070,1.0,30680.0,30659.0,0.00175]
[1610382846471,0.0974,30679.0,30659.0,0.00175]
[1610382846671,0.0974,30679.0,30659.0,5e-05]
[1610382847873,0.08077,30695.0,30659.0,5e-05]
[1610382848473,0.13632608,30660.0,30653.0,0.13632608]
[1610382848673,5.16512608,30660.0,30652.0,0.37983858]
[1610382848873,5.0288,30660.0,30652.0,0.37983858]
[1610382849274,5.0288,30660.0,30652.0,0.36133858]
[1610382849881,5.0288,30660.0,30652.0,0.33083858]
[1610382850475,0.13632608,30653.0,30652.0,0.33083858]
[1610382851177,5.0288,30660.0,30652.0,0.27973858]
[1610382851377,5.0288,30660.0,30652.0,0.37334858]
[1610382851576,5.0288,30660.0,30652.0,0.35604858]
[1610382854194,0.0972,30728.0,30652.0,0.35604858]
[1610382855779,0.0973,30742.0,30652.0,0.35604858]
[1610382856981,0.0978,30757.0,30652.0,0.35604858]
[1610382857381,5.1511,30750.0,30652.0,0.35604858]
[1610382857592,0.13632608,30723.0,30695.0,0.13632608]
[1610382857783,0.09341,30723.0,30652.0,0.35604858]
[1610382859087,0.09341,30723.0,30653.0,0.097]
[1610382859887,0.09341,30723.0,30654.0,0.2798]
[1610382860687,0.09341,30723.0,30722.0,0.13632608]
[1610382860887,0.09341,30723.0,30670.0,0.0984]
[1610382862287,0.09341,30723.0,30654.0,0.2798]
[1610382862690,5.22176,30750.0,30722.0,0.13632608]
[1610382863088,5.22176,30750.0,30696.0,0.10109]
[1610382863089,5.22176,30750.0,30703.0,0.09725]
[1610382863789,4.63456,30750.0,30703.0,0.09725]
[1610382863990,0.07066,30750.0,30703.0,0.09725]
[1610382864189,0.11274,30754.0,30703.0,0.09725]
[1610382864789,0.11274,30754.0,30753.0,0.13632608]
[1610382864989,3.31544988,30833.0,30753.0,0.13632608]
[1610382865589,3.31544988,30833.0,30750.0,0.09902]
[1610382865790,0.07888,30833.0,30750.0,0.09902]
[1610382866391,0.0965,30832.0,30750.0,0.09902]
[1610382866791,0.07888,30833.0,30750.0,0.09902]
[1610382867395,0.07888,30833.0,30832.0,0.13632608]
[1610382867591,0.07888,30833.0,30764.0,0.09088]
[1610382867796,0.07888,30833.0,30800.0,5.4099]
[1610382868195,0.07888,30833.0,30739.0,0.09044]
[1610382868394,0.07888,30833.0,30747.0,0.09551]
[1610382868997,0.07888,30833.0,30769.0,5.3234]
[1610382869197,0.0974,30832.0,30769.0,5.3234]
[1610382869397,0.13632608,30798.0,30769.0,5.3234]
[1610382869597,0.25001608,30798.0,30769.0,5.3234]
[1610382869797,0.11369,30798.0,30769.0,5.3234]
[1610382871401,0.11369,30798.0,30797.0,0.13632608]
[1610382871805,0.11369,30798.0,30769.0,5.3234]
[1610382874602,0.08635,30798.0,30769.0,4.75496]
[1610382875306,0.08635,30798.0,30769.0,4.37165]
[1610382875507,0.08635,30798.0,30797.0,0.13632608]
[1610382875704,0.08635,30798.0,30769.0,4.37165]
[1610382877108,0.08635,30798.0,30769.0,3.73296]
[1610382877511,0.08635,30798.0,30797.0,0.13632608]
[1610382877706,0.08635,30798.0,30769.0,3.73296]
[1610382879910,0.10711,30798.0,30769.0,3.73296]
[1610382881211,0.10711,30798.0,30769.0,3.43757]
[1610382881412,0.10711,30798.0,30774.0,0.13632608]
[1610382881612,0.10711,30798.0,30720.0,0.09533]
[1610382882912,0.0974,30797.0,30720.0,0.09533]
[1610382883114,0.10711,30798.0,30720.0,0.09533]
[1610382883413,0.13632608,30796.0,30795.0,0.13632608]
[1610382883613,0.13632608,30796.0,30720.0,0.09533]
[1610382884014,0.10711,30798.0,30720.0,0.09533]
[1610382884814,0.2768,30815.0,30696.0,0.10109]
[1610382884815,0.0984,30799.0,30696.0,0.10109]
[1610382885013,0.0984,30799.0,30703.0,0.10188]
[1610382885415,0.0984,30799.0,30755.0,0.13632608]
[1610382885614,0.0984,30799.0,30696.0,0.10109]
[1610382885814,0.0984,30799.0,30647.0,1.5]
[1610382886016,0.17971,30799.0,30647.0,1.5]
[1610382886214,3.21196853,30790.0,30647.0,1.5]
[1610382886414,4.79216853,30790.0,30647.0,1.5]
[1610382886613,3.29216853,30790.0,30648.0,1.5]
[1610382886813,1.5,30789.0,30648.0,1.58051]
[1610382887315,1.5,30789.0,30677.0,4.2674]
[1610382887515,1.5,30789.0,30677.0,4.33697]
[1610382887516,3.17948762,30779.0,30677.0,4.33697]
[1610382887717,1.5,30778.0,30677.0,4.33697]
[1610382887916,1.5,30778.0,30707.0,0.13632608]
[1610382887917,0.13632608,30722.0,30707.0,0.13632608]
[1610382888116,0.10824,30722.0,30677.0,4.2674]
[1610382888518,1.5,30721.0,30677.0,4.2674]
[1610382889116,0.10824,30722.0,30677.0,4.2674]
[1610382889316,1.60824,30722.0,30677.0,4.2674]
[1610382889917,1.0,30713.0,30677.0,4.2674]
[1610382890119,1.09009,30713.0,30677.0,4.2674]
[1610382890317,1.09009,30713.0,30630.0,0.11257]
[1610382890920,3.08706971,30711.0,30630.0,0.11257]
[1610382891123,3.08706971,30711.0,30622.0,4.7171]
[1610382891320,1.5,30710.0,30622.0,4.7171]
[1610382892120,3.07365019,30706.0,30622.0,4.7171]
[1610382892321,2.89837008,30694.0,30651.0,0.13632608]
[1610382892520,2.99226008,30694.0,30651.0,0.13632608]
[1610382892720,1.5,30693.0,30651.0,0.13632608]
[1610382892920,0.09389,30694.0,30622.0,4.7171]
[1610382893423,0.0981,30693.0,30622.0,4.7171]
[1610382894124,3.16108141,30693.0,30622.0,4.7171]
[1610382894324,1.5,30692.0,30630.0,0.13632608]
[1610382894525,1.5,30692.0,30622.0,4.7171]
[1610382895123,0.0981,30693.0,30622.0,4.7171]
[1610382895325,0.0981,30693.0,30621.0,0.09023]
[1610382895525,0.09389,30694.0,30621.0,0.09023]
[1610382895925,0.09389,30694.0,30630.0,5.0158]
[1610382896127,0.09389,30694.0,30630.0,5.08795]
[1610382896527,0.13632608,30679.0,30668.0,0.13632608]
[1610382896727,0.24153608,30679.0,30668.0,0.13632608]
[1610382896929,0.10521,30679.0,30648.0,0.20364264]
[1610382898529,0.13632608,30661.0,30659.0,0.13632608]
[1610382898732,0.13632608,30661.0,30648.0,0.20364264]
[1610382899132,0.11024,30663.0,30648.0,0.20364264]
[1610382900535,0.11024,30663.0,30662.0,0.13632608]
[1610382900835,0.11024,30663.0,30648.0,0.20364264]
[1610382902437,0.20844,30663.0,30648.0,0.20364264]
[1610382902638,0.13632608,30649.0,30648.0,0.17064264]
[1610382902839,1.60219,30649.0,30648.0,0.12144264]
[1610382903038,0.10219,30649.0,30648.0,0.12144264]
[1610382904340,1.60219,30649.0,30648.0,0.12144264]
[1610382904641,1.60219,30649.0,30630.0,5.0158]
[1610382904842,0.10219,30649.0,30630.0,5.0158]
[1610382905041,0.13632608,30631.0,30607.0,5.0809]
[1610382906944,0.10757,30634.0,30607.0,5.0809]
[1610382907145,1.60757,30634.0,30607.0,5.17775]
[1610382907545,1.60757,30634.0,30607.0,0.09685]
[1610382907744,1.60757,30634.0,30607.0,0.07555]
[1610382908146,0.10757,30634.0,30607.0,0.07555]
[1610382909148,0.10757,30634.0,30609.0,0.13632608]
[1610382909348,1.5,30633.0,30599.0,0.09512]
[1610382910051,0.0984,30632.0,30565.0,4.1298]
[1610382911457,0.13632608,30606.0,30583.0,0.13632608]
[1610382911656,1.63632608,30606.0,30583.0,0.13632608]
[1610382912256,1.63632608,30606.0,30565.0,4.1298]
[1610382912257,1.63632608,30606.0,30605.0,9.04e-06]
[1610382912658,1.5,30606.0,30605.0,9.04e-06]
[1610382912859,1.5,30606.0,30565.0,4.1298]
[1610382913458,0.0982,30614.0,30565.0,4.1298]
[1610382913658,0.13632608,30597.0,30595.0,0.13632608]
[1610382913857,3.00445207,30665.0,30595.0,0.13632608]
[1610382914059,3.00445207,30665.0,30595.0,0.21913608]
[1610382914259,3.01868346,30671.0,30595.0,0.21913608]
[1610382914459,1.0,30683.0,30595.0,0.21913608]
[1610382914460,1.5,30667.0,30595.0,0.21913608]
[1610382914658,0.7709,30602.0,30595.0,0.08281]
[1610382914859,0.10959,30625.0,30595.0,0.08281]
[1610382915460,0.10959,30625.0,30588.0,0.10727]
[1610382915659,0.10959,30625.0,30595.0,0.07166]
[1610382915860,0.13632608,30624.0,30623.0,0.13632608]
[1610382916059,0.09133,30633.0,30595.0,0.07166]
[1610382917060,0.09133,30633.0,30580.0,0.08834]
[1610382917261,0.6846,30632.0,30580.0,0.08834]
[1610382917863,0.0964,30631.0,30628.0,0.13632608]
[1610382918262,0.0964,30631.0,30580.0,0.08834]
[1610382918864,1.5964,30631.0,30580.0,0.08834]
[1610382919165,0.0964,30631.0,30580.0,0.08834]
[1610382919764,0.097,30630.0,30580.0,0.08834]
[1610382922071,0.097,30630.0,30565.0,0.09037]
[1610382922274,0.097,30630.0,30540.0,0.07576362]
[1610382922477,0.097,30630.0,30609.0,0.13632608]
[1610382922682,0.097,30630.0,30588.0,0.1127]
[1610382922874,0.097,30630.0,30598.0,0.11308]
[1610382924772,0.13632608,30627.0,30598.0,0.11308]
[1610382924971,0.21193608,30627.0,30598.0,0.11308]
[1610382925972,0.13632608,30627.0,30588.0,0.0136]
[1610382926173,0.13632608,30627.0,30540.0,0.07576362]
[1610382926371,0.22916608,30627.0,30540.0,0.07576362]
[1610382928676,0.13632608,30605.0,30540.0,0.07576362]
[1610382928876,0.06856,30605.0,30540.0,0.07576362]
[1610382929878,1.0,30600.0,30540.0,0.07576362]
[1610382930677,0.13632608,30595.0,30586.0,0.13632608]
[1610382930878,0.10303,30598.0,30586.0,0.13632608]
[1610382931678,0.10303,30598.0,30580.0,0.09027]
[1610382933282,0.10303,30598.0,30597.0,0.13632608]
[1610382933481,0.10303,30598.0,30580.0,0.09027]
[1610382933882,0.10303,30598.0,30551.0,5.0261]
[1610382935083,0.0979,30597.0,30552.0,0.0994]
[1610382935284,0.13632608,30582.0,30551.0,5.0261]
[1610382935886,0.0849,30588.0,30551.0,5.0261]
[1610382936087,0.0849,30588.0,30551.0,5.12056]
[1610382937089,0.10303,30598.0,30551.0,5.12056]
[1610382937287,0.06856,30605.0,30551.0,5.12056]
[1610382937487,4.6936,30625.0,30551.0,5.12056]
[1610382937687,4.6936,30625.0,30598.0,0.13632608]
[1610382938491,4.6936,30625.0,30598.0,0.22947608]
[1610382939796,0.13632608,30620.0,30613.0,0.13632608]
[1610382940191,4.6936,30625.0,30613.0,0.13632608]
[1610382940793,4.6936,30625.0,30606.0,0.09385]
[1610382942295,4.6936,30625.0,30598.0,0.09315]
[1610382942495,4.6936,30625.0,30624.0,0.13632608]
[1610382942696,0.09284,30627.0,30624.0,0.13632608]
[1610382942896,0.097,30631.0,30624.0,0.13632608]
[1610382943496,0.0435,30646.0,30619.0,0.0969]
[1610382943698,3.16478418,30675.0,30619.0,0.0969]
[1610382944098,3.16818597,30681.0,30619.0,0.0969]
[1610382944299,3.07058597,30681.0,30614.0,0.07519]
[1610382944497,0.104,30681.0,30614.0,0.07519]
[1610382944901,0.104,30681.0,30680.0,0.13632608]
[1610382945298,0.104,30681.0,30659.0,0.07291]
[1610382945698,0.104,30681.0,30614.0,0.07519]
[1610382946300,0.104,30681.0,30615.0,0.0987]
[1610382946501,0.104,30681.0,30614.0,0.07519]
[1610382947305,0.104,30681.0,30680.0,0.13632608]
[1610382949004,3.77296076,30704.0,30680.0,0.21720608]
[1610382949204,3.77296076,30704.0,30703.0,0.13632608]
[1610382949405,3.77460843,30709.0,30703.0,0.13632608]
[1610382949604,3.77460843,30709.0,30673.0,0.09187]
[1610382949806,3.85450843,30709.0,30646.0,0.07255]
[1610382950014,3.85450843,30709.0,30614.0,0.07519]
[1610382950207,3.85450843,30709.0,30579.0,1.5]
[1610382950904,3.85450843,30709.0,30580.0,1.5]
[1610382951104,3.85450843,30709.0,30580.0,0.11009]
[1610382951504,0.2744,30708.0,30580.0,0.11009]
[1610382951905,1.7744,30708.0,30580.0,0.11009]
[1610382952105,0.2744,30708.0,30580.0,0.11009]
[1610382952307,5.4788,30704.0,30583.0,4.8017]
[1610382952505,0.0968,30703.0,30583.0,4.8017]
[1610382952704,3.54718132,30660.0,30583.0,4.8017]
[1610382952905,3.65829132,30660.0,30583.0,4.8017]
[1610382953305,0.13632608,30641.0,30637.0,0.13632608]
[1610382953506,0.07652,30641.0,30583.0,4.8017]
[1610382953706,0.07652,30641.0,30584.0,1.5]
[1610382954608,0.07652,30641.0,30583.0,4.8017]
[1610382954810,0.07652,30641.0,30583.0,6.3017]
[1610382955109,0.07652,30641.0,30583.0,4.8017]
[1610382955310,0.07652,30641.0,30640.0,0.13632608]
[1610382956110,0.07652,30641.0,30604.0,0.09259]
[1610382956710,0.07652,30641.0,30583.0,4.8017]
[1610382957312,0.13632608,30623.0,30583.0,4.8017]
[1610382957510,0.21374608,30623.0,30583.0,4.8017]
[1610382957909,0.07742,30623.0,30583.0,4.8017]
[1610382958511,0.0988,30622.0,30583.0,4.8017]
[1610382959212,0.07742,30623.0,30583.0,4.8017]
[1610382959413,0.07742,30623.0,30622.0,0.13632608]
[1610382959815,0.07742,30623.0,30591.0,0.10572]
[1610382960213,0.0993,30622.0,30591.0,0.10572]
[1610382960413,3.23751702,30619.0,30591.0,0.10572]
[1610382960813,3.23751702,30619.0,30583.0,4.8017]
[1610382961314,3.23322571,30608.0,30604.0,0.13632608]
[1610382961514,3.31812571,30608.0,30583.0,4.8017]
[1610382961717,3.31812571,30608.0,30517.0,1.5]
[1610382961915,3.31812571,30608.0,30495.0,1.5]
[1610382962319,3.31812571,30608.0,30495.0,3.66472052]
[1610382962517,3.2362186,30606.0,30495.0,3.66472052]
[1610382962918,3.2362186,30606.0,30495.0,1.5]
[1610382963118,3.2362186,30606.0,30496.0,1.5]
[1610382963719,3.2508769,30608.0,30496.0,1.5]
[1610382963919,3.2508769,30608.0,30603.0,0.13632608]
[1610382964119,3.2508769,30608.0,30568.0,0.06846]
[1610382964522,0.0849,30608.0,30568.0,0.06846]
[1610382964922,0.0989,30607.0,30568.0,0.06846]
[1610382965121,0.0849,30608.0,30568.0,0.06846]
[1610382965822,3.15634538,30606.0,30568.0,0.06846]
[1610382966023,3.15634538,30606.0,30595.0,0.13632608]
[1610382966423,3.15634538,30606.0,30568.0,0.06846]
[1610382966730,3.15739709,30605.0,30568.0,0.06846]
[1610382967531,3.14893934,30603.0,30568.0,0.06846]
[1610382968531,3.14893934,30603.0,30583.0,0.13632608]
[1610382968733,3.13888728,30598.0,30583.0,0.13632608]
[1610382968932,3.23467728,30598.0,30583.0,0.13632608]
[1610382969133,0.09579,30598.0,30583.0,0.13632608]
[1610382969733,0.09579,30598.0,30568.0,0.06846]
[1610382969933,0.09579,30598.0,30540.0,0.18911362]
[1610382970138,0.0965,30597.0,30540.0,0.18911362]
[1610382970533,0.0965,30597.0,30586.0,0.13632608]
[1610382970534,0.13632608,30589.0,30586.0,0.13632608]
[1610382970936,0.20840608,30589.0,30586.0,0.13632608]
[1610382971136,0.07208,30589.0,30540.0,0.18911362]
[1610382971739,0.0978,30588.0,30540.0,0.18911362]
[1610382972140,0.09216,30589.0,30540.0,0.18911362]
[1610382972542,0.09216,30589.0,30588.0,0.13632608]
[1610382973239,0.18906,30589.0,30588.0,0.13632608]
[1610382973639,0.04692222,30594.0,30588.0,0.13632608]
[1610382974341,0.04692222,30594.0,30568.0,0.09684]
[1610382976743,0.04692222,30594.0,30593.0,0.13632608]
[1610382976943,0.0988,30598.0,30593.0,0.23893608]
[1610382977742,0.0988,30598.0,30593.0,0.10261]
[1610382978544,0.0988,30598.0,30594.0,1.5]
[1610382978743,0.099,30605.0,30597.0,0.13632608]
[1610382978943,0.099,30605.0,30598.0,1.5]
[1610382980144,0.099,30620.0,30598.0,1.5]
[1610382980946,0.099,30620.0,30599.0,1.5]
[1610382981144,3.11012314,30668.0,30599.0,1.5]
[1610382981345,3.11025174,30673.0,30667.0,0.13632608]
[1610382981546,3.1032243,30679.0,30667.0,0.13632608]
[1610382981746,0.098,30678.0,30667.0,0.13632608]
[1610382981947,3.38849427,30683.0,30641.0,0.10615]
[1610382982146,3.46902427,30683.0,30641.0,0.10615]
[1610382982546,0.36443,30683.0,30641.0,0.10615]
[1610382983151,0.36443,30683.0,30642.0,1.5]
[1610382983349,0.36443,30683.0,30682.0,0.13632608]
[1610382983849,0.2839,30683.0,30682.0,0.13632608]
[1610382984049,3.08249485,30699.0,30669.0,0.09031]
[1610382984249,3.42497525,30704.0,30669.0,0.09031]
[1610382984250,3.08038942,30704.0,30669.0,0.09031]
[1610382984649,3.08245852,30709.0,30669.0,0.09031]
[1610382985451,3.0702832,30714.0,30669.0,0.09031]
[1610382986252,3.05550331,30720.0,30713.0,0.13632608]
[1610382986653,0.0987,30726.0,30713.0,0.13632608]
[1610382986853,3.05539936,30728.0,30669.0,0.09031]
[1610382987554,3.02261375,30719.0,30695.0,4.881]
[1610382987753,3.13591375,30719.0,30695.0,4.881]
[1610382987956,3.13591375,30719.0,30695.0,4.27938696]
[1610382988258,3.13591375,30719.0,30718.0,0.13632608]
[1610382988456,0.1133,30719.0,30695.0,4.27938696]
[1610382990058,0.1133,30719.0,30676.0,0.10995]
[1610382990259,0.1133,30719.0,30662.0,0.09418]
[1610382990459,0.1133,30719.0,30581.0,2.13626883]
[1610382990460,0.1133,30719.0,30577.0,2.13707292]
[1610382990659,0.1133,30719.0,30586.0,1.5]
[1610382990862,0.1133,30719.0,30659.0,0.13632608]
[1610382991060,0.1133,30719.0,30651.0,0.11148]
[1610382991464,0.2928,30718.0,30651.0,0.11148]
[1610382991660,0.391,30718.0,30651.0,0.11148]
[1610382991861,3.27493244,30695.0,30651.0,0.11148]
[1610382992061,3.27493244,30695.0,30549.0,2.13653359]
[1610382992062,3.34754244,30695.0,30549.0,2.13653359]
[1610382992262,3.34754244,30695.0,30550.0,1.5]
[1610382992463,3.34754244,30695.0,30550.0,1.60169]
[1610382992864,3.34754244,30695.0,30667.0,4.8734]
[1610382993765,3.23800846,30679.0,30667.0,4.8734]
[1610382993965,0.13632608,30668.0,30667.0,4.8734]
[1610382994166,0.21269608,30668.0,30645.0,3.9798]
[1610382994372,0.21269608,30668.0,30621.0,0.0967]
[1610382994565,0.21269608,30668.0,30550.0,1.60169]
[1610382994967,0.2772,30667.0,30550.0,0.10169]
[1610382995565,3.17362544,30655.0,30550.0,0.10169]
[1610382995765,3.28138544,30655.0,30550.0,0.10169]
[1610382996564,2.82766904,30638.0,30550.0,0.10169]
[1610382996765,2.92230904,30638.0,30550.0,0.10169]
[1610382997367,0.2746,30637.0,30587.0,0.13632608]
[1610382997569,2.83839229,30619.0,30587.0,0.13632608]
[1610382997769,2.91437229,30619.0,30540.0,0.07576362]
[1610382998572,0.07598,30619.0,30540.0,0.07576362]
[1610383000774,2.79947454,30613.0,30540.0,0.07576362]
[1610383001178,0.07598,30619.0,30540.0,0.07576362]
[1610383001375,0.07598,30619.0,30540.0,0.16296362]
[1610383001577,0.07598,30619.0,30541.0,1.5]
[1610383002276,0.07598,30619.0,30540.0,0.16296362]
[1610383002476,0.13632608,30593.0,30540.0,0.16296362]
[1610383003276,0.13632608,30593.0,30541.0,1.5]
[1610383004683,0.13632608,30593.0,30540.0,0.16296362]
[1610383005077,0.13632608,30593.0,30541.0,1.5]
[1610383005278,0.13632608,30593.0,30540.0,0.16296362]
[1610383005479,0.27265216,30593.0,30540.0,0.16296362]
[1610383005680,0.13632608,30593.0,30540.0,0.16296362]
[1610383006483,0.24317608,30593.0,30540.0,0.16296362]
[1610383007082,0.24317608,30593.0,30550.0,0.20689414]
[1610383007282,0.24317608,30593.0,30550.0,0.27650414]
[1610383007486,0.24317608,30593.0,30585.0,0.13632608]
[1610383008089,0.10507608,30593.0,30570.0,0.06999]
[1610383008285,0.09492,30603.0,30550.0,0.27650414]
[1610383008887,0.04172,30603.0,30550.0,0.27650414]
[1610383009685,0.07376,30610.0,30550.0,0.27650414]
[1610383009886,0.13632608,30593.0,30592.0,0.13632608]
[1610383010086,0.08913,30611.0,30550.0,0.27650414]